fUSD/lending_fUSD_20250107
["ID","MTS","AMOUNT","RATE_DAILY","PERIOD"]
[348054425,1736285437051,-500.0,9.793e-05,2]
[348054426,1736285437061,-500.0,9.793e-05,2]
[348054427,1736285437070,-500.0,9.793e-05,2]
[348054428,1736285437079,-150.0,9.793e-05,2]
[348054429,1736285437090,-500.0,9.793e-05,2]
[348054430,1736285437100,-500.0,9.793e-05,2]
[348054431,1736285437111,-500.0,9.793e-05,2]
[348054432,1736285437121,-113.45932204,9.793e-05,2]
[348054433,1736285437135,-386.54067796,9.793e-05,2]
[348054434,1736285437145,-270.22964336,9.793e-05,2]
[348054435,1736285437164,-229.77035664,9.793e-05,2]
[348054436,1736285437175,-500.0,9.793e-05,2]
[348054437,1736285437185,-500.0,9.793e-05,2]
[348054439,1736285437195,-500.0,9.793e-05,2]
[348054441,1736285437204,-500.0,9.793e-05,2]
[348054442,1736285437214,-500.0,9.793e-05,2]
[348054444,1736285437223,-500.0,9.793e-05,2]
[348054445,1736285437234,-500.0,9.793e-05,2]
[348054446,1736285437243,-500.0,9.793e-05,2]
[348054447,1736285437253,-500.0,9.793e-05,2]
[348054448,1736285437262,-500.0,9.793e-05,2]
[348054449,1736285437271,-500.0,9.793e-05,2]
[348054450,1736285437280,-672.62,9.793e-05,2]
[348054451,1736285437290,-500.0,9.793e-05,2]
[348054452,1736285437299,-500.0,9.793e-05,2]
[348054453,1736285437309,-106.54326154,9.793e-05,2]
[348054454,1736285437322,-393.45673846,9.793e-05,2]
[348054455,1736285437331,-500.0,9.793e-05,2]
[348054456,1736285437340,-500.0,9.793e-05,2]
[348054457,1736285437349,-500.0,9.793e-05,2]
[348054458,1736285437358,-500.0,9.793e-05,2]
[348054459,1736285437367,-500.0,9.793e-05,2]
[348054460,1736285437377,-218.76152377,9.793e-05,2]
[348054461,1736285437399,-365.45390271,9.793e-05,2]
[348054462,1736285437409,-4105.04,9.793e-05,2]
[348054463,1736285437418,-500.0,9.793e-05,2]
[348054464,1736285437427,-500.0,9.793e-05,2]
[348054465,1736285437436,-500.0,9.793e-05,2]
[348054466,1736285437445,-500.0,9.793e-05,2]
[348054467,1736285437455,-500.0,9.793e-05,2]
[348054468,1736285437464,-500.0,9.793e-05,2]
[348054469,1736285437473,-500.0,9.793e-05,2]
[348054470,1736285437483,-500.0,9.793e-05,2]
[348054471,1736285437492,-500.0,9.793e-05,2]
[348054472,1736285437502,-500.0,9.793e-05,2]
[348054473,1736285437511,-500.0,9.793e-05,2]
[348054474,1736285437521,-500.0,9.793e-05,2]
[348054475,1736285437531,-500.0,9.793e-05,2]
[348054476,1736285437540,-500.0,9.793e-05,2]
[348054477,1736285437549,-500.0,9.793e-05,2]
[348054478,1736285437559,-500.0,9.793e-05,2]
[348054479,1736285437568,-500.0,9.793e-05,2]
[348054480,1736285437578,-500.0,9.793e-05,2]
[348054481,1736285437588,-500.0,9.793e-05,2]
[348054482,1736285437597,-500.0,9.793e-05,2]
[348054483,1736285437607,-500.0,9.793e-05,2]
[348054484,1736285437616,-500.0,9.793e-05,2]
[348054485,1736285437625,-500.0,9.793e-05,2]
[348054486,1736285437635,-500.0,9.793e-05,2]
[348054487,1736285437644,-500.0,9.793e-05,2]
[348054488,1736285437653,-500.0,9.793e-05,2]
[348054489,1736285437663,-500.0,9.793e-05,2]
[348054490,1736285437672,-500.0,9.793e-05,2]
[348054491,1736285437682,-500.0,9.793e-05,2]
[348054492,1736285437691,-500.0,9.793e-05,2]
[348054493,1736285437700,-500.0,9.793e-05,2]
[348054495,1736285437709,-500.0,9.793e-05,2]
[348054496,1736285437718,-2582.46,9.793e-05,2]
[348054497,1736285437727,-500.0,9.793e-05,2]
[348054498,1736285437738,-500.0,9.793e-05,2]
[348054499,1736285437747,-500.0,9.793e-05,2]
[348054500,1736285437756,-500.0,9.793e-05,2]
[348054501,1736285437765,-500.0,9.793e-05,2]
[348054502,1736285437775,-500.0,9.793e-05,2]
[348054503,1736285437784,-500.0,9.793e-05,2]
[348054504,1736285437793,-774.24,9.793e-05,2]
[348054505,1736285437803,-500.0,9.793e-05,2]
[348054506,1736285437812,-500.0,9.793e-05,2]
[348054507,1736285437821,-500.0,9.793e-05,2]
[348054508,1736285437830,-500.0,9.793e-05,2]
[348054509,1736285437840,-500.0,9.793e-05,2]
[348054510,1736285437849,-500.0,9.793e-05,2]
[348054511,1736285437858,-538.8,9.793e-05,2]
[348054512,1736285437867,-500.0,9.793e-05,2]
[348054513,1736285437877,-500.0,9.793e-05,2]
[348054514,1736285437886,-500.0,9.793e-05,2]
[348054515,1736285437900,-500.0,9.793e-05,2]
[348054516,1736285437909,-500.0,9.793e-05,2]
[348054517,1736285437919,-500.0,9.793e-05,2]
[348054518,1736285437928,-500.0,9.793e-05,2]
[348054519,1736285437938,-1495.06,9.793e-05,2]
[348054520,1736285437949,-500.0,9.793e-05,2]
[348054521,1736285437958,-396.34348238,9.793e-05,2]
[348054522,1736285437990,-103.65651762,9.793e-05,2]
[348054523,1736285437999,-297.12348238,9.793e-05,2]
[348054524,1736285438010,-202.87651762,9.793e-05,2]
[348054525,1736285438019,-500.0,9.793e-05,2]
[348054526,1736285438028,-118.37258897,9.793e-05,2]
[348054527,1736285438077,-255.97559429,9.793e-05,2]
[348054528,1736285438088,-125.65181674,9.793e-05,2]
[348054529,1736285438104,-500.0,9.793e-05,2]
[348054530,1736285438114,-500.0,9.793e-05,2]
[348054531,1736285438123,-500.0,9.793e-05,2]
[348054532,1736285438133,-500.0,9.793e-05,2]
[348054533,1736285438143,-500.0,9.793e-05,2]
[348054534,1736285438153,-1963.89402,9.793e-05,2]
[348054535,1736285438163,-500.0,9.793e-05,2]
[348054536,1736285438172,-500.0,9.793e-05,2]
[348054537,1736285438182,-500.0,9.793e-05,2]
[348054538,1736285438191,-500.0,9.793e-05,2]
[348054539,1736285438200,-657.35,9.793e-05,2]
[348054540,1736285438209,-500.0,9.793e-05,2]
[348054541,1736285438219,-500.0,9.793e-05,2]
[348054542,1736285438228,-500.0,9.793e-05,2]
[348054543,1736285438241,-514.87,9.793e-05,2]
[348054544,1736285438250,-500.0,9.793e-05,2]
[348054545,1736285438259,-500.0,9.793e-05,2]
[348054546,1736285438269,-500.0,9.793e-05,2]
[348054547,1736285438278,-500.0,9.793e-05,2]
[348054548,1736285438287,-500.0,9.793e-05,2]
[348054549,1736285438296,-500.0,9.793e-05,2]
[348054550,1736285438307,-473.03726029,9.793e-05,2]
[348054551,1736285438317,-500.0,9.793e-05,2]
[348054552,1736285438327,-500.0,9.793e-05,2]
[348054553,1736285438335,-500.0,9.793e-05,2]
[348054554,1736285438345,-1829.168437,9.793e-05,2]
[348054555,1736285438354,-640.86,9.793e-05,2]
[348054556,1736285438363,-1000.98,9.793e-05,2]
[348054557,1736285438372,-500.0,9.793e-05,2]
[348054558,1736285438381,-500.0,9.793e-05,2]
[348054559,1736285438391,-500.0,9.793e-05,2]
[348054560,1736285438400,-500.0,9.793e-05,2]
[348054561,1736285438409,-159.403828,9.793e-05,2]
[348054562,1736285438419,-500.0,9.793e-05,2]
[348054563,1736285438428,-500.0,9.793e-05,2]
[348054564,1736285438437,-6138.66,9.793e-05,2]
[348054565,1736285438446,-544.82,9.793e-05,2]
[348054566,1736285438456,-500.0,9.793e-05,2]
[348054567,1736285438466,-500.0,9.793e-05,2]
[348054568,1736285438475,-500.0,9.793e-05,2]
[348054569,1736285438486,-500.0,9.793e-05,2]
[348054570,1736285438495,-500.0,9.793e-05,2]
[348054571,1736285438505,-157.994959,9.793e-05,2]
[348054572,1736285438514,-500.0,9.793e-05,2]
[348054573,1736285438523,-500.0,9.793e-05,2]
[348054574,1736285438533,-522.22,9.793e-05,2]
[348054575,1736285438542,-500.0,9.793e-05,2]
[348054576,1736285438551,-500.0,9.793e-05,2]
[348054577,1736285438561,-500.0,9.793e-05,2]
[348054578,1736285438571,-500.0,9.793e-05,2]
[348054579,1736285438580,-500.0,9.793e-05,2]
[348054580,1736285438590,-500.0,9.793e-05,2]
[348054581,1736285438599,-500.0,9.793e-05,2]
[348054582,1736285438608,-500.0,9.793e-05,2]
[348054583,1736285438617,-1318.44,9.793e-05,2]
[348054584,1736285438627,-591.67,9.793e-05,2]
[348054585,1736285438636,-577.12403399,9.793e-05,2]
[348054586,1736285438645,-500.0,9.793e-05,2]
[348054587,1736285438654,-913.57,9.793e-05,2]
[348054588,1736285438664,-500.0,9.793e-05,2]
[348054589,1736285438673,-500.0,9.793e-05,2]
[348054590,1736285438682,-592.66,9.793e-05,2]
[348054591,1736285438691,-642.51,9.793e-05,2]
[348054592,1736285438700,-500.0,9.793e-05,2]
[348054593,1736285438709,-500.0,9.793e-05,2]
[348054594,1736285438719,-500.0,9.793e-05,2]
[348054595,1736285438728,-1055.92,9.793e-05,2]
[348054596,1736285438739,-500.0,9.793e-05,2]
[348054597,1736285438748,-500.0,9.793e-05,2]
[348054598,1736285438757,-1107.75,9.793e-05,2]
[348054599,1736285438766,-500.0,9.793e-05,2]
[348054600,1736285438776,-500.0,9.793e-05,2]
[348054601,1736285438785,-500.0,9.793e-05,2]
[348054602,1736285438794,-500.0,9.793e-05,2]
[348054603,1736285438804,-500.0,9.793e-05,2]
[348054604,1736285438813,-500.0,9.793e-05,2]
[348054605,1736285438822,-500.0,9.793e-05,2]
[348054606,1736285438831,-500.0,9.793e-05,2]
[348054607,1736285438840,-500.0,9.793e-05,2]
[348054608,1736285438849,-500.0,9.793e-05,2]
[348054609,1736285438858,-500.0,9.793e-05,2]
[348054610,1736285438867,-618.15,9.793e-05,2]
[348054611,1736285438876,-500.0,9.793e-05,2]
[348054612,1736285438885,-1308.33,9.793e-05,2]
[348054613,1736285438897,-500.0,9.793e-05,2]
[348054614,1736285438907,-500.0,9.793e-05,2]
[348054615,1736285438916,-500.0,9.793e-05,2]
[348054616,1736285438924,-1564.57,9.793e-05,2]
[348054617,1736285438935,-500.0,9.793e-05,2]
[348054618,1736285438946,-829.44,9.793e-05,2]
[348054619,1736285438955,-563.72,9.793e-05,2]
[348054620,1736285438964,-500.0,9.793e-05,2]
[348054621,1736285438973,-500.0,9.793e-05,2]
[348054622,1736285438984,-500.0,9.793e-05,2]
[348054623,1736285438993,-500.0,9.793e-05,2]
[348054624,1736285439002,-338.07085866,9.793e-05,2]
[348054625,1736285439011,-500.0,9.793e-05,2]
[348054626,1736285439023,-1192.97,9.793e-05,2]
[348054627,1736285439033,-500.0,9.793e-05,2]
[348054628,1736285439042,-500.0,9.793e-05,2]
[348054629,1736285439051,-715.27,9.793e-05,2]
[348054630,1736285439060,-500.0,9.793e-05,2]
[348054631,1736285439069,-500.0,9.793e-05,2]
[348054632,1736285439078,-735.42,9.793e-05,2]
[348054633,1736285439088,-546.88,9.793e-05,2]
[348054634,1736285439099,-500.0,9.793e-05,2]
[348054635,1736285439108,-500.0,9.793e-05,2]
[348054636,1736285439117,-500.0,9.793e-05,2]
[348054637,1736285439126,-500.0,9.793e-05,2]
[348054638,1736285439136,-500.0,9.793e-05,2]
[348054639,1736285439145,-158.336419,9.793e-05,2]
[348054640,1736285439155,-500.0,9.793e-05,2]
[348054641,1736285439164,-500.0,9.793e-05,2]
[348054642,1736285439173,-500.0,9.793e-05,2]
[348054644,1736285439326,-500.0,9.793e-05,2]
[348054645,1736285439336,-500.0,9.793e-05,2]
[348054646,1736285439345,-660.46,9.793e-05,2]
[348054647,1736285439355,-500.0,9.793e-05,2]
[348054648,1736285439364,-500.0,9.793e-05,2]
[348054649,1736285439373,-500.0,9.793e-05,2]
[348054650,1736285439382,-500.0,9.793e-05,2]
[348054651,1736285439391,-5044.39,9.793e-05,2]
[348054652,1736285439400,-500.0,9.793e-05,2]
[348054653,1736285439409,-526.49,9.793e-05,2]
[348054654,1736285439419,-500.0,9.793e-05,2]
[348054655,1736285439427,-500.0,9.793e-05,2]
[348054656,1736285439438,-158.866775,9.793e-05,2]
[348054657,1736285439447,-500.0,9.793e-05,2]
[348054658,1736285439456,-500.0,9.793e-05,2]
[348054659,1736285439466,-500.0,9.793e-05,2]
[348054660,1736285439475,-500.0,9.793e-05,2]
[348054661,1736285439485,-500.0,9.793e-05,2]
[348054662,1736285439494,-500.0,9.793e-05,2]
[348054663,1736285439504,-502.33,9.793e-05,2]
[348054664,1736285439513,-303.15697552,9.793e-05,2]
[348054665,1736285439522,-500.0,9.793e-05,2]
[348054666,1736285439531,-500.0,9.793e-05,2]
[348054667,1736285439540,-500.0,9.793e-05,2]
[348054668,1736285439550,-500.0,9.793e-05,2]
[348054669,1736285439559,-500.0,9.793e-05,2]
[348054670,1736285439569,-500.0,9.793e-05,2]
[348054671,1736285439578,-1600.55,9.793e-05,2]
[348054672,1736285439587,-500.0,9.793e-05,2]
[348054673,1736285439596,-500.0,9.793e-05,2]
[348054674,1736285439606,-724.6,9.793e-05,2]
[348054675,1736285439615,-500.0,9.793e-05,2]
[348054676,1736285439624,-269.9690249,9.793e-05,2]
[348054677,1736285439634,-500.0,9.793e-05,2]
[348054678,1736285439643,-500.0,9.793e-05,2]
[348054679,1736285439653,-500.0,9.793e-05,2]
[348054680,1736285439663,-500.0,9.793e-05,2]
[348054681,1736285439672,-500.0,9.793e-05,2]
[348054682,1736285439682,-500.0,9.793e-05,2]
[348054683,1736285439691,-500.0,9.793e-05,2]
[348054684,1736285439701,-500.0,9.793e-05,2]
[348054685,1736285439710,-500.0,9.793e-05,2]
[348054686,1736285439720,-768.98,9.793e-05,2]
[348054687,1736285439729,-500.0,9.793e-05,2]
[348054688,1736285439739,-500.0,9.793e-05,2]
[348054689,1736285439749,-1507.26,9.793e-05,2]
[348054690,1736285439758,-1845.32,9.793e-05,2]
[348054691,1736285439767,-500.0,9.793e-05,2]
[348054692,1736285439777,-500.0,9.793e-05,2]
[348054693,1736285439786,-500.0,9.793e-05,2]
[348054694,1736285439795,-500.0,9.793e-05,2]
[348054696,1736285439804,-518.25,9.793e-05,2]
[348054698,1736285439813,-575.10197888,9.793e-05,2]
[348054700,1736285439822,-500.0,9.793e-05,2]
[348054702,1736285439832,-500.0,9.793e-05,2]
[348054705,1736285439841,-500.0,9.793e-05,2]
[348054707,1736285439851,-500.0,9.793e-05,2]
[348054708,1736285439860,-698.47,9.793e-05,2]
[348054709,1736285439869,-500.0,9.793e-05,2]
[348054710,1736285439878,-500.0,9.793e-05,2]
[348054711,1736285439887,-500.0,9.793e-05,2]
[348054712,1736285439899,-500.0,9.793e-05,2]
[348054713,1736285439909,-500.0,9.793e-05,2]
[348054714,1736285439919,-1651.33,9.793e-05,2]
[348054715,1736285439929,-500.0,9.793e-05,2]
[348054716,1736285439939,-500.0,9.793e-05,2]
[348054717,1736285439950,-500.0,9.793e-05,2]
[348054718,1736285439960,-566.68,9.793e-05,2]
[348054719,1736285439969,-630.11,9.793e-05,2]
[348054720,1736285439980,-158.336398,9.793e-05,2]
[348054721,1736285439991,-187.88439238,9.793e-05,2]
[348054722,1736285440000,-500.0,9.793e-05,2]
[348054723,1736285440009,-1118.64,9.793e-05,2]
[348054724,1736285440019,-500.0,9.793e-05,2]
[348054725,1736285440029,-500.0,9.793e-05,2]
[348054726,1736285440038,-500.0,9.793e-05,2]
[348054727,1736285440048,-500.0,9.793e-05,2]
[348054728,1736285440058,-500.0,9.793e-05,2]
[348054729,1736285440067,-500.0,9.793e-05,2]
[348054730,1736285440076,-500.0,9.793e-05,2]
[348054731,1736285440086,-630.77,9.793e-05,2]
[348054732,1736285440096,-500.0,9.793e-05,2]
[348054733,1736285440105,-500.0,9.793e-05,2]
[348054734,1736285440116,-500.0,9.793e-05,2]
[348054735,1736285440125,-500.0,9.793e-05,2]
[348054736,1736285440135,-500.0,9.793e-05,2]
[348054737,1736285440144,-853.63,9.793e-05,2]
[348054738,1736285440154,-500.0,9.793e-05,2]
[348054739,1736285440163,-500.0,9.793e-05,2]
[348054740,1736285440172,-500.0,9.793e-05,2]
[348054741,1736285440181,-500.0,9.793e-05,2]
[348054742,1736285440190,-500.0,9.793e-05,2]
[348054743,1736285440199,-532.24,9.793e-05,2]
[348054744,1736285440208,-500.0,9.793e-05,2]
[348054745,1736285440219,-500.0,9.793e-05,2]
[348054746,1736285440229,-500.0,9.793e-05,2]
[348054747,1736285440240,-500.0,9.793e-05,2]
[348054748,1736285440249,-525.72,9.793e-05,2]
[348054749,1736285440258,-500.0,9.793e-05,2]
[348054750,1736285440268,-500.0,9.793e-05,2]
[348054751,1736285440278,-500.0,9.793e-05,2]
[348054752,1736285440287,-500.0,9.793e-05,2]
[348054753,1736285440296,-500.0,9.793e-05,2]
[348054754,1736285440306,-500.0,9.793e-05,2]
[348054755,1736285440315,-500.0,9.793e-05,2]
[348054756,1736285440325,-500.0,9.793e-05,2]
[348054757,1736285440334,-500.0,9.793e-05,2]
[348054758,1736285440343,-500.0,9.793e-05,2]
[348054759,1736285440352,-500.0,9.793e-05,2]
[348054760,1736285440362,-500.0,9.793e-05,2]
[348054761,1736285440371,-500.0,9.793e-05,2]
[348054762,1736285440380,-500.0,9.793e-05,2]
[348054763,1736285440390,-500.0,9.793e-05,2]
[348054764,1736285440399,-256.04889466,9.793e-05,2]
[348054765,1736285440408,-500.0,9.793e-05,2]
[348054766,1736285440417,-500.0,9.793e-05,2]
[348054767,1736285440426,-500.0,9.793e-05,2]
[348054768,1736285440435,-500.0,9.793e-05,2]
[348054769,1736285440445,-500.0,9.793e-05,2]
[348054770,1736285440454,-500.0,9.793e-05,2]
[348054771,1736285440463,-500.0,9.793e-05,2]
[348054772,1736285440472,-500.0,9.793e-05,2]
[348054773,1736285440481,-500.0,9.793e-05,2]
[348054774,1736285440493,-1808.96,9.793e-05,2]
[348054775,1736285440503,-543.7685035,9.793e-05,2]
[348054776,1736285440512,-500.0,9.793e-05,2]
[348054777,1736285440522,-500.0,9.793e-05,2]
[348054778,1736285440531,-500.0,9.793e-05,2]
[348054779,1736285440540,-1962.5,9.793e-05,2]
[348054780,1736285440550,-500.0,9.793e-05,2]
[348054781,1736285440559,-500.0,9.793e-05,2]
[348054782,1736285440568,-508.12,9.793e-05,2]
[348054783,1736285440577,-500.0,9.793e-05,2]
[348054784,1736285440587,-500.0,9.793e-05,2]
[348054785,1736285440596,-500.0,9.793e-05,2]
[348054786,1736285440606,-500.0,9.793e-05,2]
[348054787,1736285440617,-500.0,9.793e-05,2]
[348054788,1736285440627,-500.0,9.793e-05,2]
[348054789,1736285440637,-500.0,9.793e-05,2]
[348054790,1736285440647,-500.0,9.793e-05,2]
[348054791,1736285440656,-2387.0,9.793e-05,2]
[348054792,1736285440665,-500.0,9.793e-05,2]
[348054793,1736285440676,-500.0,9.793e-05,2]
[348054794,1736285440691,-500.0,9.793e-05,2]
[348054795,1736285440700,-500.0,9.793e-05,2]
[348054796,1736285440710,-644.13,9.793e-05,2]
[348054797,1736285440719,-500.0,9.793e-05,2]
[348054798,1736285440728,-500.0,9.793e-05,2]
[348054799,1736285440739,-500.0,9.793e-05,2]
[348054800,1736285440749,-500.0,9.793e-05,2]
[348054801,1736285440758,-1644.43,9.793e-05,2]
[348054802,1736285440767,-500.0,9.793e-05,2]
[348054803,1736285440776,-500.0,9.793e-05,2]
[348054804,1736285440785,-500.0,9.793e-05,2]
[348054805,1736285440795,-500.0,9.793e-05,2]
[348054806,1736285440804,-1369.65,9.794e-05,2]
[348054807,1736285440813,-2329.93,9.794e-05,2]
[348054808,1736285440825,-2044.99,9.794e-05,2]
[348054809,1736285440834,-2706.85,9.794e-05,2]
[348054810,1736285440843,-1768.85,9.794e-05,2]
[348054811,1736285440852,-5382.59,9.794e-05,2]
[348054812,1736285440861,-2577.34,9.794e-05,2]
[348054813,1736285440870,-3990.34,9.794e-05,2]
[348054814,1736285440879,-2137.49,9.794e-05,2]
[348054815,1736285440891,-2304.23,9.794e-05,2]
[348054816,1736285440905,-500.0,9.794e-05,2]
[348054817,1736285440915,-872.15,9.794e-05,2]
[348054818,1736285440925,-4084.08,9.794e-05,2]
[348054819,1736285440934,-500.0,9.794e-05,2]
[348054820,1736285440946,-1846.76,9.794e-05,2]
[348054821,1736285440955,-1967.93,9.794e-05,2]
[348054822,1736285440966,-2031.35,9.794e-05,2]
[348054823,1736285440975,-815.81,9.794e-05,2]
[348054824,1736285440986,-1376.02,9.794e-05,2]
[348054825,1736285440995,-2084.48,9.794e-05,2]
[348054826,1736285441004,-1327.37,9.794e-05,2]
[348054827,1736285441014,-1438.41,9.794e-05,2]
[348054828,1736285441023,-1463.45,9.794e-05,2]
[348054829,1736285441032,-608.36,9.794e-05,2]
[348054830,1736285441042,-1634.46,9.794e-05,2]
[348054831,1736285441052,-4737.92,9.794e-05,2]
[348054832,1736285441062,-1073.95,9.794e-05,2]
[348054833,1736285441071,-9463.63,9.794e-05,2]
[348054834,1736285441081,-2120.82,9.794e-05,2]
[348054835,1736285441090,-2032.06,9.794e-05,2]
[348054836,1736285441100,-1141.78,9.795e-05,2]
[348054837,1736285441109,-1697.42,9.795e-05,2]
[348054838,1736285441118,-1126.16,9.795e-05,2]
[348054839,1736285441127,-3795.91,9.795e-05,2]
[348054840,1736285441137,-3096.92,9.795e-05,2]
[348054841,1736285441147,-4339.55286485,9.8e-05,2]
[348054842,1736285441156,-3900.0,9.8e-05,3]
[348054843,1736285441166,-500.0,9.864e-05,2]
[348054844,1736285441175,-3694.461,9.864e-05,2]
[348054845,1736285441184,-160.025,9.864e-05,2]
[348054846,1736285441194,-2513.47,9.897e-05,2]
[348054847,1736285441203,-2453.39,9.897e-05,2]
[348054848,1736285441212,-500.0,9.9e-05,2]
[348054849,1736285441222,-4431.308,9.9e-05,2]
[348054850,1736285441231,-700.0,9.9e-05,3]
[348054851,1736285441240,-1169.21250025,9.972e-05,2]
[348054852,1736285441250,-302.5251368,9.973e-05,2]
[348054853,1736285441260,-165.77243165,9.973e-05,2]
[348054854,1736285441269,-500.0,9.973e-05,2]
[348054855,1736285441279,-27484.15696936,9.988e-05,2]
[348054856,1736285441289,-214.73506021,9.991e-05,2]
[348054857,1736285441298,-753.8712219,9.994e-05,2]
[348054858,1736285441308,-7388.4834597,9.994e-05,2]
[348054859,1736285441318,-12229.6624638,9.994e-05,2]
[348054860,1736285441328,-2223.4718088,9.994e-05,2]
[348054861,1736285441339,-500.0,9.999e-05,2]
[348054862,1736285441350,-3536.36,9.999e-05,2]
[348054863,1736285441359,-2273.3,9.999e-05,2]
[348054864,1736285441369,-5165.88,9.999e-05,2]
[348054865,1736285441379,-4187.45,9.999e-05,2]
[348054866,1736285441388,-1208.0,0.0001,2]
[348054867,1736285441397,-614827.02477067,0.0001,2]
[348054868,1736285441943,-36099.74937567,0.0001,2]
[348054869,1736285441955,-705.7996043,0.0001,2]
[348054870,1736285441967,-593.999997,0.0001,2]
[348054880,1736285443047,-252.90102083,9.79e-05,2]
[348054881,1736285443062,-293.57897917,9.79e-05,2]
[348054882,1736285443071,-500.0,9.792e-05,2]
[348054883,1736285443081,-510.45154423,9.793e-05,2]
[348054884,1736285443100,-3.05845577,9.793e-05,2]
[348054885,1736285443110,-1510.13147629,0.0001,2]
[348054886,1736285443286,-10051.6969912,0.0001,2]
[348054887,1736285443298,-48554.0132911,0.0001,2]
[348054888,1736285443465,-500.0,9.79e-05,2]
[348054889,1736285443474,-500.0,9.791e-05,2]
[348054890,1736285443484,-6855.35575124,0.0001,2]
[348054891,1736285443506,-2907.09468667,0.0001,2]
[348054892,1736285443517,-340.47681186,0.0001,2]
[348054893,1736285443535,-2143.35793935,0.0001,2]
[348054894,1736285443546,-4939.77375769,0.0001,2]
[348054895,1736285443569,-2440.47,0.0001,2]
[348054896,1736285443581,-1736.2500075,0.0001,2]
[348054897,1736285443593,-3800.0,0.0001,2]
[348054898,1736285443690,-6610.74015009,0.0001,2]
[348054899,1736285444289,-500.0,9.791e-05,2]
[348054900,1736285444300,-500.0,9.793e-05,2]
[348054901,1736285444310,-500.0,9.794e-05,2]
[348054902,1736285444319,-1768.9080385,0.0001,2]
[348054903,1736285444330,-1152.9712,0.0001,2]
[348054904,1736285444342,-704.66153,0.0001,2]
[348054905,1736285444359,-63516.58198658,0.0001,2]
[348054906,1736285444376,-2015.62664577,0.0001,2]
[348054907,1736285444387,-778630.96825576,0.0001,2]
[348054908,1736285444401,-2102.26508297,0.0001,2]
[348054909,1736285444412,-2695.45171749,0.0001,2]
[348054910,1736285444423,-1715.0,0.0001,2]
[348054911,1736285444435,-1950.0,0.0001,2]
[348054912,1736285444446,-388.5620595,0.0001,2]
[348054913,1736285444457,-4843.8,0.0001,2]
[348054914,1736285444468,-1320.05848825,0.0001,2]
[348054929,1736285445623,-500.0,9.79e-05,2]
[348054930,1736285445634,-3132.98,9.79e-05,2]
[348054931,1736285445643,-500.0,9.79e-05,2]
[348054932,1736285445653,-500.0,9.792e-05,2]
[348054933,1736285445663,-186.247805,9.793e-05,2]
[348054934,1736285445672,-20553.05903926,0.0001,2]
[348054935,1736285445684,-76454.20718732,0.0001,2]
[348054936,1736285445708,-218614.11305562,0.0001,2]
[348054937,1736285445719,-9688.2,0.0001,2]
[348054938,1736285445730,-4858.9206596,0.0001,2]
[348054939,1736285445742,-105928.92131912,0.0001,2]
[348054942,1736285445764,-500.0,9.793e-05,2]
[348054944,1736285445773,-353.57875002,0.0001,2]
[348054946,1736285445784,-500.0,0.0001,2]
[348054949,1736285445802,-10021.7028579,0.0001,2]
[348054951,1736285445814,-905.09969353,0.0001,2]
[348054954,1736285445838,-1269.26404567,0.0001,2]
[348054956,1736285445849,-48629.36958716,0.0001,2]
[348054959,1736285445866,-1940.3477441,0.0001,2]
[348055886,1736285559819,1665.71,8.219e-05,2]
[348055887,1736285777322,10000.0,0.0002,120]
[348055888,1736286398822,166.0,8.035e-05,2]
[348055890,1736286428062,-1531009.0,0.0001817,30]
[348055891,1736286428090,-100000.0,0.0001817,30]
[348055892,1736286428118,-100000.0,0.0001817,31]
[348055893,1736286428144,-100000.0,0.0001817,32]
[348055894,1736286428172,-100000.0,0.0001817,33]
[348055895,1736286428201,-100000.0,0.0001817,34]
[348055896,1736286428228,-5000.0,0.0001817,31]
[348055897,1736286428257,-301.24569156,0.0001817,60]
[348055898,1736286428284,-3000.0,0.0001817,120]